Cogmind - Beta 15 --- EXPLORER MODE // 2025.07.15 @ 12:44:21 Player: GermanMO Result: Destroyed by P-80 Master with Gamma Rifle Performance ------------- Evolutions (6) 3000 Regions Visited (19) 3800 Robots Destroyed (222) 1110 Value Destroyed (10807) 10807 Prototype IDs (18) 360 Alien Tech Used (0) 0 Bonus (2077) 2077 TOTAL SCORE: 21154 Bonus ------- High Alert Combat Kills 220 Follower Combat Kills 1107 Entered Garrisons 200 Used RIF Installer 500 Network Hubs Disabled 200 Met Data Miner 300 Friendly Fire -450 Cogmind --------- Core Integrity 0/1150 Matter 300/300 Energy 160/170 System Corruption 19% Temperature Warm (104) Movement Walking (90) Location -4/Factory Parts ------- > --- POWER (3) -------- Light Antimatter Reactor > --- PROPULSION (5) --- Advanced VSS Leg Advanced VSS Leg > --- UTILITY (8) ------ Enhanced Optical Array Terrain Scanner Terrain Scan Processor Advanced Targeting Computer Advanced Melee Analysis Suite Advanced Target Analyzer Improved Dynamic Insulation System > --- WEAPON (4) ------- Powered Hammer > --- INVENTORY (5) ---- Tesla Rifle HERF Cannon Peak State ------------ > --- POWER ------------ Micro Fission Core > --- PROPULSION ------- Nuclear Pulse Array Nuclear Pulse Array > --- UTILITY ---------- Advanced Cooling System Enhanced Optical Array Advanced Targeting Computer Advanced Targeting Computer Advanced Melee Analysis Suite Improved Target Analyzer Quantum Capacitor > --- WEAPON ----------- Wave Gun Heavy Shock Bomb Launcher Vibroblade > --- INVENTORY -------- Nuclear Pulse Array Hypervelocity Coil Gun Power Maul Vibroblade [Rating: 94] Favorites ----------- Power Light Nuclear Core Engine Improved Ion Engine Power Core Light Nuclear Core Reactor Quantum Reactor Propulsion Improved Titanium Leg Treads Medium Treads Leg Improved Titanium Leg Hover Unit Antigrav System Flight Unit VTOL Module Utility Utility Shielding Device Hardlight Generator Processor Machine Analyzer Hackware Relay Coupler [Duelist] Protection Utility Shielding Weapon KE Penetrator Energy Gun Wave Gun Energy Cannon Matter Neutralizer Ballistic Gun KE Penetrator Ballistic Cannon Mass Driver Launcher Grenade Launcher Special Weapon Remote Datajack Impact Weapon Heavy Hammer Slashing Weapon Ripper Build | -11 -10 -10 -9 -7 -7 -7 -6 -6 -6 -6 -5 -5 -5 -5 -5 -5 -4 -4 -4 ------- Run | Yrd Mat Sub Rec Fac Gar Fac Fac Low Low Dat Pro Fac Ext Cet Arc Hub Fac Was Fac Slots Evolved 13 | . 1 . . 6 . . 2 . . . . 2 . . . . 2 . . Power 2 | . . . . 1 . . 1 . . . . . . . . . . . . Propulsion 3 | . . . . 1 . . 1 . . . . 1 . . . . . . . Utility 6 | . 1 . . 3 . . . . . . . 1 . . . . 1 . . Weapon 2 | . . . . 1 . . . . . . . . . . . . 1 . . Parts Attached 170 | 6 5 1 5 9 7 13 1 13 . . 6 8 8 4 6 14 45 . 19 Power 29 | . 2 . 1 1 1 3 . 3 . . 1 2 2 1 . 2 7 . 3 Engine 7 | . 2 . 1 . . . . . . . . 1 . . . 1 2 . . Core 18 | . . . . 1 1 3 . 3 . . 1 1 2 . . 1 3 . 2 Reactor 4 | . . . . . . . . . . . . . . 1 . . 2 . 1 Propulsion 59 | 2 . . 2 4 . 5 1 5 . . 3 3 3 . 5 4 16 . 6 Treads 12 | . . . . . . . . . . . . . . . 5 4 3 . . Leg 29 | 2 . . 2 4 . 5 1 1 . . 1 . . . . . 7 . 6 Wheel . | . . . . . . . . . . . . . . . . . . . . Hover 3 | . . . . . . . . . . . . . . . . . 3 . . Flight 15 | . . . . . . . . 4 . . 2 3 3 . . . 3 . . Utility 34 | 2 1 1 . 2 2 2 . 1 . . . 2 2 . . 4 10 . 5 Device 15 | . 1 . . 2 . 1 . . . . . . 1 . . 3 5 . 2 Storage . | . . . . . . . . . . . . . . . . . . . . Processor 13 | . . 1 . . . . . 1 . . . 2 1 . . 1 5 . 2 Hackware 3 | . . . . . 2 1 . . . . . . . . . . . . . Protection 3 | 2 . . . . . . . . . . . . . . . . . . 1 Artifact . | . . . . . . . . . . . . . . . . . . . . Weapon 48 | 2 2 . 2 2 4 3 . 4 . . 2 1 1 3 1 4 12 . 5 Energy Gun 11 | . . . . . 1 1 . . . . 1 . . 1 1 1 4 . 1 Energy Cannon 4 | . . . . 1 . . . . . . . . . . . . 1 . 2 Ballistic Gun 13 | 2 . . . . 2 . . . . . . 1 . 2 . 2 3 . 1 Ballistic Cannon 5 | . . . . . . 1 . 1 . . 1 . . . . 1 1 . . Launcher 6 | . 2 . 1 1 . . . . . . . . 1 . . . 1 . . Special Weapon 3 | . . . . . . 1 . 2 . . . . . . . . . . . Impact Weapon 3 | . . . 1 . . . . 1 . . . . . . . . . . 1 Slashing Weapon 3 | . . . . . 1 . . . . . . . . . . . 2 . . Piercing Weapon . | . . . . . . . . . . . . . . . . . . . . Special Melee Weapon . | . . . . . . . . . . . . . . . . . . . . Unidentified Prototypes 7 | . . . . . . 1 . . . . . 1 . 2 . 1 1 . 1 Corrupted Parts 3 | . . . . . . . . . . . . 1 . 2 . . . . . System Corruption 11 | . . . . . . . . . . . . 3 . 8 . . . . . Parts Lost 89 | . 1 5 1 1 . 4 . 4 . . 6 3 5 3 3 9 30 2 12 Power 18 | . 1 1 . . . 3 . 1 . . 1 1 1 1 . . 5 . 3 Propulsion 32 | . . 2 . . . . . 1 . . 4 1 1 . 3 5 9 1 5 Utility 13 | . . . 1 . . . . 1 . . . 1 1 . . . 8 . 1 Weapon 26 | . . 2 . 1 . 1 . 1 . . 1 . 2 2 . 4 8 1 3 Highest Loss Streak 7 | . 1 4 1 1 . 2 . 4 . . 2 2 2 1 3 2 7 1 6 To Critical Strikes 3 | . . . . . . . . . . . . . . 1 . . 1 . 1 Average Backups 2 | 1 . . . . 3 4 4 4 5 5 5 2 1 . . 1 2 1 1 Power . | . . . . . . . . . . . . . . . . . . . . Propulsion . | . . . . . 1 . . . . 1 1 . . . . . . . . Utility . | . . . . . . 1 2 2 2 2 2 1 . . . . . . . Weapon 1 | . . . . . 1 1 2 2 2 2 2 1 1 . . 1 1 . 1 Tool/Special . | . . . . . . . . . . . . . . . . . . . . Unused Backups 5 | . . . . . 1 . . . 1 . . . . . . 1 1 . 1 Power . | . . . . . . . . . . . . . . . . . . . . Propulsion . | . . . . . . . . . . . . . . . . . . . . Utility 2 | . . . . . 1 . . . . . . . . . . 1 . . . Weapon 3 | . . . . . . . . . 1 . . . . . . . 1 . 1 Tool/Special . | . . . . . . . . . . . . . . . . . . . . Average Slot Usage (%) 80 | . 96 91 80 73 90 96 85 81 100 100 77 80 76 66 73 83 61 42 58 Engine 2 | . 9 6 11 7 6 . . . . . . . . . . 1 1 . . Core 5 | . . . . 4 7 11 6 7 18 18 10 4 4 3 . 3 3 3 5 Treads 3 | . . . . . . . . . . . . . . . 12 22 7 . . Leg 10 | . 24 25 24 18 21 20 22 18 . . 2 3 . . . . . . 12 Flight 4 | . . . . . . . . 4 25 25 10 17 21 21 6 . 2 . . Device 5 | . 12 12 8 9 13 10 6 . . . . . . . . 4 4 . 3 Processor 14 | . . 6 12 7 7 7 6 9 12 12 12 16 22 22 22 25 23 18 19 Hackware 7 | . . . . . 5 17 18 18 18 18 18 15 5 5 5 1 . . . Protection 6 | . 24 17 12 7 7 7 6 6 6 6 6 5 5 5 5 5 1 . 3 Energy Gun 2 | . . . . . . 2 6 . . . 3 4 4 1 9 6 3 . 4 Ballistic Gun 4 | . 8 . . . 13 5 . . . . . 4 5 2 4 5 2 . 3 Ballistic Cannon 1 | . . . . . . . 6 4 6 6 2 . . . . 2 2 2 . Launcher 1 | . 15 22 4 7 . . . . . . . . . 2 . . 1 . . Special Weapon 1 | . . . . . . 4 . 4 6 6 3 . . . . . . . . Impact Weapon 2 | . . . 6 7 6 . . 1 6 6 6 5 3 . . . . . 1 Slashing Weapon 1 | . . . . . . 7 6 4 . . . . . . . . 2 . . Peak Build Rating 94 | 6 8 10 14 37 52 55 47 56 48 48 48 59 65 60 66 73 94 59 89 Average Rating 47 | 3 7 8 11 29 45 48 45 43 48 48 38 48 58 52 57 64 66 44 62 On Entrance 38 | . 6 8 5 13 33 52 42 47 48 48 48 39 52 60 60 66 66 53 14 Naked Turns . | . . . . . . . . . . . . . . . . . . . . Heaviest Build 47 | 6 14 14 15 47 46 44 24 31 31 31 31 22 31 32 38 39 42 34 41 Greatest Support 148 | 20 20 20 23 60 60 60 69 69 18 18 20 25 29 27 112 129 148 33 84 Greatest Overweight (x) 9 | . . . . 2 . 3 . 4 1 1 6 2 1 1 9 . 8 2 1 Average Overweight (x) . | . . . . . . . . . 1 1 1 . . . . . . . . Largest Inventory Capacity 5 | 5 5 5 5 5 5 5 5 5 5 5 5 5 5 5 5 5 5 5 5 Average Capacity 5 | 5 5 5 5 5 5 5 5 5 5 5 5 5 5 5 5 5 5 5 5 Most Carried 5 | 3 3 1 3 4 5 5 5 5 5 5 5 4 5 1 2 5 5 3 3 Average Carried 2 | 1 . . . 1 4 4 4 4 4 5 5 2 2 . . 1 2 1 1 Final Capacity 5 | 5 5 5 5 5 5 5 5 5 5 5 5 5 5 5 5 5 5 5 5 Final Carried 5 | 3 . . . 2 5 4 4 5 5 5 5 3 . . . 4 1 3 2 Class Distribution -------------------- 51% | Hacker-Mutant 18% | Scavenger-Mutant 14% | Scavenger-Gunner 4% | Hacker-Gunner 3% | Hacker-Sprinter 3% | Scavenger-Sprinter Dominant Class ---------------- Hacker-Mutant | -10/Materials Hacker-Mutant | -10/Subcaves Hacker-Mutant | -9/Recycling Hacker-Mutant | -7/Factory Hacker-Mutant | -7/Garrison Hacker-Mutant | -7/Factory Hacker-Mutant | -6/Factory Scavenger-Mutant | -6/Lower Caves Scavenger-Mutant | -6/Lower Caves Scavenger-Mutant | -6/Data Miner Scavenger-Mutant | -5/Proximity Caves Scavenger-Mutant | -5/Factory Hacker-Sprinter | -5/Extension Scavenger-Sprinter | -5/Cetus Scavenger-Gunner | -5/Archives Scavenger-Gunner | -5/Hub_04(d) Hacker-Mutant | -4/Factory Hacker-Mutant | -4/Waste Hacker-Gunner | -4/Factory Resources | -11 -10 -10 -9 -7 -7 -7 -6 -6 -6 -6 -5 -5 -5 -5 -5 -5 -4 -4 -4 ----------- Run | Yrd Mat Sub Rec Fac Gar Fac Fac Low Low Dat Pro Fac Ext Cet Arc Hub Fac Was Fac Matter Collected 5805 | 140 56 71 282 20 574 375 51 365 32 . 197 65 663 257 179 777 919 . 782 Remotely . | . . . . . . . . . . . . . . . . . . . . Salvage Created 10184 | . 92 50 218 90 1197 556 51 233 50 . 359 67 842 132 374 2133 2773 . 967 Parts 468 | . 6 6 4 1 55 27 3 16 4 . 15 3 61 2 10 88 125 . 42 Haulers Intercepted 4 | . . . . . . . . . . . . . . . . 2 2 . . Recyclers Shooed 2 | . 1 . . . . . . . . . . . 1 . . . . . . Parts Field Recycled 16 | . . . . . 16 . . . . . . . . . . . . . . Retrieved Matter 192 | . . . . . 192 . . . . . . . . . . . . . . Parts Self-Destructed . | . . . . . . . . . . . . . . . . . . . . Prevented . | . . . . . . . . . . . . . . . . . . . . Kills | -11 -10 -10 -9 -7 -7 -7 -6 -6 -6 -6 -5 -5 -5 -5 -5 -5 -4 -4 -4 ------- Run | Yrd Mat Sub Rec Fac Gar Fac Fac Low Low Dat Pro Fac Ext Cet Arc Hub Fac Was Fac Combat Hostiles Destroyed 182 | . 2 4 1 2 27 13 1 10 3 . 10 3 11 4 4 28 45 . 14 Melee 33 | . . . . . 1 3 . 2 . . . . . . . . 26 . 1 Guns 101 | . . . . . 26 10 1 . . . 5 2 11 . 4 25 10 . 7 Cannons 28 | . . . . . . . . 7 3 . 5 . . . . 3 9 . 1 AOE 11 | . 2 4 . . . . . 1 . . . . . 4 . . . . . Classes Destroyed 18 | . 3 1 1 . 1 3 . 1 . . . . 3 . . 1 3 . 1 Worker 7 | . . . . . . . . . . . . . 2 . . 4 1 . . Builder 11 | . 1 . . . . . . . . . . . 5 . . 1 3 . 1 Tunneler 1 | . . . . . . . . . . . . . . . . . 1 . . Hauler 4 | . . . . . . . . . . . . . . . . 2 2 . . Recycler 4 | . 1 . 2 . . 1 . . . . . . . . . . . . . Operator 3 | . . . . . . . . . . . . . 1 . . . 2 . . Watcher 9 | . . . . . . . . . . . . . 2 1 . 4 1 . 1 Swarmer 51 | . . . . . 21 5 . 2 3 . 7 3 1 . . 3 3 . 3 Cutter 7 | . . . . . . . . . . . . . . . . . 7 . . Grunt 50 | . 2 . . 2 2 1 . 4 . . . . 6 3 . 11 14 . 5 Brawler 1 | . . . . . . . . . . . . . . . . . . . 1 Duelist 6 | . . . . . . 2 . . . . . . . . . 1 2 . 1 Sentry 22 | . . . 1 . 4 1 1 . . . . . 2 . 4 7 1 . 1 Hunter 13 | . . . . . . 1 . . . . 3 . 2 . . 1 6 . . Programmer 25 | . . . . . . 3 . 3 . . . . . . . 5 11 . 3 Heavy 1 | . . . . . . . . . . . . . . . . . 1 . . Cetus Guard 1 | . . . . . . . . . . . . . . 1 . . . . . Subdweller 4 | . . 4 . . . . . . . . . . . . . . . . . Packrat 1 | . . . . . . . . . . . 1 . . . . . . . . Thief 1 | . . . . . . . . 1 . . . . . . . . . . . Butcher 1 | . . . . . . . . . . . . . . 1 . . . . . Best Kill Streak 7 | . 4 2 3 2 4 2 1 2 3 . 4 3 6 3 1 7 7 . 4 Combat Bots Only 7 | . 2 2 1 2 4 2 1 2 3 . 4 3 2 3 1 7 7 . 4 Max Kills in Single Turn 2 | . 2 2 1 1 2 1 1 1 1 . 1 1 1 2 1 2 1 . 1 Gunslinging 1 | . . . . . 1 . . . . . . . . . . . . . . Exploded 2 | . 1 2 . . . . . 1 . . . . . 2 . . . . . Melee 1 | . . . . . 1 1 . 1 . . . . . . . . 1 . 1 Uniques/NPCs Destroyed . | . . . . . . . . . . . . . . . . . . . . Combat | -11 -10 -10 -9 -7 -7 -7 -6 -6 -6 -6 -5 -5 -5 -5 -5 -5 -4 -4 -4 -------- Run | Yrd Mat Sub Rec Fac Gar Fac Fac Low Low Dat Pro Fac Ext Cet Arc Hub Fac Was Fac Hostile Shots Fired 1693 | . 10 75 18 6 301 162 18 62 8 . 91 33 101 35 48 170 404 3 148 Missed 665 | . 5 34 5 2 118 59 7 27 2 . 30 10 38 17 13 53 193 1 51 Hits 1028 | . 5 41 13 4 183 103 11 35 6 . 61 23 63 18 35 117 211 2 97 Melee 37 | . . . . . . 14 . 3 . . . . . . . . 16 2 2 Projectile 991 | . 5 41 13 4 183 89 11 32 6 . 61 23 63 18 35 117 195 . 95 AOE 12 | . . . . . . . . . . . . . . . . . 9 . 3 Critical Strikes 59 | . . . 1 . 1 8 . . . . . 1 2 3 . 15 20 1 7 Actively Blocked 1 | . . . . . . 1 . . . . . . . . . . . . . Part Disruptions 5 | . 1 . . . . 1 . . . . . . 1 1 . . 1 . . Damage Taken 11696 | . 127 414 124 250 408 869 53 356 61 . 580 233 645 256 709 1815 3316 56 1424 Core 2593 | . 28 91 20 36 62 178 10 34 11 . 182 46 199 82 216 248 866 21 263 Absorbed by Shields 1168 | . . . . . 640 104 . . . . . . 284 140 . . . . . Redirected to Shielding 55 | . . 3 2 2 4 9 . 3 . . . 4 6 1 . . 21 . . Ignored by Resistances 7380 | . 79 208 78 138 713 597 36 217 35 . 357 143 550 233 347 1054 1730 31 834 Regen/Repaired (Parts) 82 | . . . . . . . . . . . . 82 . . . . . . . Core Remaining (%) 59 | 100 . . 44 . . 60 . . . . 72 . . . . 20 . . . Volleys Fired 606 | . 14 7 . 1 65 54 3 39 4 . 39 4 76 15 31 85 105 7 57 Largest 4 | . 2 2 . 1 2 1 2 2 1 . 1 2 2 2 3 3 4 3 2 Hottest 225 | . 40 60 . 36 68 70 110 110 44 . 75 225 110 115 209 209 220 206 162 Shots Fired 956 | . 19 13 . 1 115 56 6 42 4 . 39 7 114 16 59 208 147 15 95 Gun 708 | . 15 . . . 115 35 3 3 . . 18 7 104 4 59 181 89 . 75 Cannon 181 | . . . . . . 1 3 35 4 . 21 . . . . 27 56 14 20 Launcher 45 | . 4 13 . 1 . . . 2 . . . . 10 12 . . 2 1 . Special 22 | . . . . . . 20 . 2 . . . . . . . . . . . Kinetic 528 | . 15 . . . 115 21 3 35 4 . 21 3 65 3 26 116 50 7 44 Thermal 336 | . . . . . . 15 3 3 . . 18 4 39 1 33 92 90 7 31 Explosive 42 | . 4 13 . 1 . . . 2 . . . . 10 12 . . . . . Electromagnetic 28 | . . . . . . . . . . . . . . . . . 7 1 20 Robot Hit Streak 54 | . 10 19 . . 21 32 8 21 3 . 16 11 40 14 47 49 29 17 54 Robot Miss Streak 3 | . 1 . . . 2 2 . 1 3 . 2 . 2 1 1 2 2 1 2 Penetration Max 2 | . . . . . 1 1 . . . . . . 1 . . 2 . . 1 Secondary Targets 11 | . . . . . 7 . . . . . . . 1 . . 2 1 . . Max Gunslinging Chain 1 | . . . . . 1 . . . . . . . 1 . . 1 1 . . Shots Hit Robots 882 | . 11 9 9 3 102 66 5 42 4 . 35 12 82 11 53 152 189 14 83 Core Hits 408 | . 8 9 2 . 37 18 2 15 9 . 33 2 39 32 13 76 86 1 26 Critical Kills 16 | . . . 1 . 1 . . . . . . . 1 . . 12 . . 1 Critical Parts Destroyed 35 | . . . 1 2 7 1 . . . . . . 3 . 3 14 1 . 3 Critical Strikes 91 | . . . 2 2 8 7 1 4 . . . . 5 . 4 34 18 . 6 Burn 13 | . . . . . . 2 . . . . . . . . . 6 3 . 2 Destroy 43 | . . . . . 4 1 . . . . . . 5 . 4 26 1 . 2 Blast 12 | . . . . . . . 1 4 . . . . . . . 2 5 . . Smash 10 | . . . 2 2 4 . . . . . . . . . . . . . 2 Sever 13 | . . . . . . 4 . . . . . . . . . . 9 . . Melee Attacks 207 | . . . 9 6 27 46 1 6 . . . 17 4 . . . 84 . 7 Impact 74 | . . . 9 6 26 . . 5 . . . 17 4 . . . . . 7 Slashing 133 | . . . . . 1 46 1 1 . . . . . . . . 84 . . Piercing . | . . . . . . . . . . . . . . . . . . . . Sneak Attacks 11 | . . . 3 . . 1 . . . . . . . . . . 7 . . Combat Hostiles 2 | . . . . . . . . . . . . . . . . . 2 . . Follow-up Attacks 3 | . . . . . . . . . . . . . . . . . 3 . . Damage Inflicted 28802 | . 353 584 327 92 2801 1438 125 1250 130 . 767 385 3041 1991 1337 3587 7722 514 2358 Guns 13068 | . 60 . . . 1880 736 67 42 . . 339 132 2371 114 1337 2857 1562 . 1571 Cannons 4729 | . . . . . . . 58 885 130 . 428 . . . . 622 1605 511 490 Explosions 4091 | . 293 582 . . . . . 88 . . . . 670 1877 . 103 435 3 40 Melee 6878 | . . . 323 92 921 695 . 235 . . . 253 . . . . 4120 . 239 Ramming 36 | . . 2 4 . . 7 . . . . . . . . . 5 . . 18 Kinetic 10194 | . 60 . . . 1880 431 58 885 130 . 428 66 1624 83 608 1753 1005 260 923 Thermal 7296 | . . . . . . 305 67 42 . . 339 66 747 31 729 1726 2345 251 648 Explosive 3648 | . 293 582 . . . . . 88 . . . . 670 1877 . . 138 . . Electromagnetic 750 | . . . . . . . . . . . . . . . . 103 114 3 530 Impact 2028 | . . . 323 92 921 . . 200 . . . 253 . . . . . . 239 Slashing 4850 | . . . . . . 695 . 35 . . . . . . . . 4120 . . Piercing . | . . . . . . . . . . . . . . . . . . . . Highest Corruption 26 | . . . . . . 3 . . . . . 3 3 11 11 26 5 13 19 Average Corruption 8 | . . . . . . 2 . . . . . 3 3 5 11 14 3 8 15 Corruption Purged 5 | . . . . . . . . . . . . . . . . . 5 . . Corruption Blocked . | . . . . . . . . . . . . . . . . . . . . Effects 179 | . . . . . . 5 . . . . . 2 16 5 20 59 28 4 40 Message Errors 36 | . . . . . . 2 . . . . . 1 3 . 3 10 3 . 14 Matter Fused 47 | . . . . . . . . . . . . 1 6 2 4 16 9 1 8 Heat Flow Errors 19 | . . . . . . . . . . . . . 1 . 1 8 3 1 5 Energy Discharges 15 | . . . . . . 1 . . . . . . . 1 3 3 5 . 2 Parts Rejected 7 | . . . . . . . . . . . . . 2 1 1 . 1 1 1 Parts Fused 4 | . . . . . . . . . . . . . . . . 3 1 . . Data Loss (minor) 17 | . . . . . . . . . . . . . 1 1 1 6 3 1 4 Data Loss (major) 7 | . . . . . . . . . . . . . 1 . 2 2 . . 2 Misfires 7 | . . . . . . 2 . . . . . . 1 . . 3 . . 1 Alerts 3 | . . . . . . . . . . . . . 1 . . 1 1 . . Misdirections 3 | . . . . . . . . . . . . . . . 2 . . . 1 Weapon Failures 14 | . . . . . . . . . . . . . . . 3 7 2 . 2 Overload Shots 1 | . . . . . . . . . . . . 1 . . . . . . . Effects 1 | . . . . . . . . . . . . 1 . . . . . . . Energy Bleed 1 | . . . . . . . . . . . . 1 . . . . . . . Overflow Damage 1206 | . . . 38 64 250 138 . 81 . . 14 32 3 85 . 12 389 . 100 Projectiles 117 | . . . . . . . . 48 . . 14 . . . . 12 32 . 11 Explosions 179 | . . . . 2 . . . . . . . . 3 85 . . 89 . . Melee 910 | . . . 38 62 250 138 . 33 . . . 32 . . . . 268 . 89 Knockbacks 37 | . . . 1 . . . . 5 3 . 16 2 . . . 1 7 . 2 Impact 4 | . . . 1 . . . . . . . . 2 . . . . . . 1 Kinetic 31 | . . . . . . . . 5 3 . 15 . . . . 1 7 . . Secondary 2 | . . . . . . . . . . . 1 . . . . . . . 1 Self-Inflicted Damage 459 | . 31 56 . 216 . . . . . . . . 32 23 . 69 8 . 24 Shots 18 | . 3 4 . 5 . . . . . . . . 2 1 . 1 1 . 1 Rammed 2 | . . . . . . . . . . . . . . . . 1 . . 1 Targets Rammed 6 | . . 1 1 . . 1 . . . . . . . . . 1 . . 2 Kicked 4 | . . 1 1 . . 1 . . . . . . . . . . . . 1 Crushed . | . . . . . . . . . . . . . . . . . . . . Highest Temperature 666 | . 12 . 10 58 52 160 72 72 80 . 201 176 246 42 666 447 424 326 571 Average Temperature 97 | . 5 . 10 35 9 52 38 33 40 . 53 90 92 10 199 88 130 151 114 Received Heat Transfer 2138 | . 33 114 72 36 110 118 30 123 9 . . 42 159 25 171 387 403 . 306 Effects 30 | . . . . . . . . . . . . . . . 11 3 5 . 11 Shutdowns 8 | . . . . . . . . . . . . . . . 2 2 1 . 3 Energy Bleed 2 | . . . . . . . . . . . . . . . 2 . . . . Interference 8 | . . . . . . . . . . . . . . . 3 . 4 . 1 Matter Decay 3 | . . . . . . . . . . . . . . . 2 1 . . . Short Circuit 1 | . . . . . . . . . . . . . . . 1 . . . . Damage (major) 7 | . . . . . . . . . . . . . . . . . . . 7 Damage (core) 1 | . . . . . . . . . . . . . . . 1 . . . . Siege Activations . | . . . . . . . . . . . . . . . . . . . . Martial Activations . | . . . . . . . . . . . . . . . . . . . . Shielding Activations . | . . . . . . . . . . . . . . . . . . . . Robots Disrupted . | . . . . . . . . . . . . . . . . . . . . Combat Hostiles . | . . . . . . . . . . . . . . . . . . . . Robots Corrupted 14 | . . . 2 2 3 . . . . . . 1 . . . 1 . . 5 Combat Hostiles 9 | . . . 1 2 . . . . . . . 1 . . . . . . 5 Parts Fried 14 | . . . . 5 1 . . . . . . 1 1 . . . 1 . 5 Impact Corruptions 23 | . . . 3 3 9 . . 1 . . . 3 . . . . . . 4 Robots Melted . | . . . . . . . . . . . . . . . . . . . . Combat Hostiles . | . . . . . . . . . . . . . . . . . . . . Parts Melted 22 | . . . . . . 5 . . . . 1 . 1 . 2 11 2 . . Heat Transferred 11017 | . . . . . . 629 111 74 . . 555 111 1184 37 925 2849 3173 259 1110 Parts Sabotaged . | . . . . . . . . . . . . . . . . . . . . Parts Stolen 1 | . . . . . . . . 1 . . . . . . . . . . . Parts Stripped . | . . . . . . . . . . . . . . . . . . . . Power Chain Reactions 1 | . . . . . . . . . . . . . . . . . 1 . . Alert | -11 -10 -10 -9 -7 -7 -7 -6 -6 -6 -6 -5 -5 -5 -5 -5 -5 -4 -4 -4 ------- Run | Yrd Mat Sub Rec Fac Gar Fac Fac Low Low Dat Pro Fac Ext Cet Arc Hub Fac Was Fac Maximum Alert Level 3 | . . . . . 3 2 . . . . . . . 1 . 2 2 . . Low Security (%) 75 | 100 100 . 100 100 17 80 100 . . . . 100 100 41 100 77 58 100 100 Level 1 15 | . . . . . 22 19 . . . . . . . 58 . 20 37 . . Level 2 6 | . . . . . 47 . . . . . . . . . . 2 3 . . Level 3 1 | . . . . . 13 . . . . . . . . . . . . . . Level 4 . | . . . . . . . . . . . . . . . . . . . . Level 5 . | . . . . . . . . . . . . . . . . . . . . High Security . | . . . . . . . . . . . . . . . . . . . . Max Security . | . . . . . . . . . . . . . . . . . . . . Peak Influence 951 | . 93 . 30 73 951 409 30 . . . . 39 121 341 90 432 458 68 105 Initial 370 | . . . . . 8 370 . . . . . . 4 31 86 . 134 68 . Average 129 | . 13 . 1 11 480 83 1 . . . . 10 47 220 10 127 178 27 16 Influence Increases 6961 | . 108 30 45 141 963 448 31 230 115 . 245 144 676 465 92 1200 1634 . 394 Destroy 0b10 Robot/C 3900 | . 40 . 20 40 540 260 20 180 60 . 200 60 420 240 80 560 900 . 280 Destroy 0b10 Robot/NC 225 | . 10 . 10 . 15 5 . . . . 5 . 55 10 . 55 50 . 10 Destroy Leader 766 | . 10 . . . 40 80 10 50 10 . 40 10 86 10 . 172 196 . 52 Allied During Kill 50 | . . . . . . . . . . . . . 23 27 . . . . . Successful Hack 35 | . . . . . . . . . . . . 18 5 . . . 12 . . Disable Machine 212 | . . . . 32 8 4 . . . . . 4 12 . 4 72 64 . 12 Anti-Garrison Action 250 | . . . . . 250 . . . . . . . . . . . . . . Destroy Structure 833 | . 18 . . 54 20 24 1 . . . . 22 60 178 8 266 172 . 10 Partial Spotted 30 | . . . . . . . . . . . . . 15 . . . . . 15 Lose Combat Pursuer 660 | . 30 30 15 15 90 75 . . 45 . . 30 . . . 75 240 . 15 Influence Decreases 6961 | . 108 30 45 125 28 1399 1 260 115 . 245 131 613 230 403 826 1722 286 394 Entered New Map 1342 | . . . . . 8 581 . 16 . . . . 9 45 225 . 240 218 . Time Decay 4878 | . 108 10 45 115 . 795 1 244 115 . 225 101 514 135 128 744 1183 58 357 Lost Part 641 | . . 20 . 10 . 23 . . . . 20 30 50 30 30 82 299 10 37 Lost Ally 100 | . . . . . 20 . . . . . . . 40 20 20 . . . . Squads Dispatched 27 | . . . . . . 3 . . . . . . 3 1 . 6 11 . 3 Investigation 2 | . . . . . . . . . . . . . 1 1 . . . . . Extermination 12 | . . . . . . 3 . . . . . . . . . 2 5 . 2 Reinforcement 12 | . . . . . . . . . . . . . 2 . . 4 6 . . Assault . | . . . . . . . . . . . . . . . . . . . . Garrison 1 | . . . . . . . . . . . . . . . . . . . 1 Intercept . | . . . . . . . . . . . . . . . . . . . . Searches Triggered . | . . . . . . . . . . . . . . . . . . . . Construction Impeded 2 | . . . . . . . . . . . . . 1 . . 1 . . . Haulers Reinforced 1 | . . . . . . . . . . . . . . . . 1 . . . Active Scanning Responses . | . . . . . . . . . . . . . . . . . . . . Cargo Convoy Interrupts . | . . . . . . . . . . . . . . . . . . . . Stealth | -11 -10 -10 -9 -7 -7 -7 -6 -6 -6 -6 -5 -5 -5 -5 -5 -5 -4 -4 -4 --------- Run | Yrd Mat Sub Rec Fac Gar Fac Fac Low Low Dat Pro Fac Ext Cet Arc Hub Fac Was Fac Distress Signals 13 | . 1 . . . . 1 . . . . . . 2 2 . 2 2 . 3 Communications Jammed . | . . . . . . . . . . . . . . . . . . . . Distress Signals . | . . . . . . . . . . . . . . . . . . . . Times Spotted 311 | . 7 14 2 4 26 26 1 11 6 . 10 6 24 14 4 42 79 6 29 Peak Tracking Total 8 | . 3 6 1 3 6 4 1 2 3 . 4 3 4 5 2 7 8 6 7 Tactical Retreats 29 | . 1 2 1 1 2 4 . . 2 . . 1 . . . 4 10 . 1 Traps | -11 -10 -10 -9 -7 -7 -7 -6 -6 -6 -6 -5 -5 -5 -5 -5 -5 -4 -4 -4 ------- Run | Yrd Mat Sub Rec Fac Gar Fac Fac Low Low Dat Pro Fac Ext Cet Arc Hub Fac Was Fac Traps Triggered 19 | . 2 2 . . 4 2 . . . . . . 5 . . . 2 . 2 Indirectly . | . . . . . . . . . . . . . . . . . . . . Trap Hack Attempts . | . . . . . . . . . . . . . . . . . . . . Triggered . | . . . . . . . . . . . . . . . . . . . . Disarmed . | . . . . . . . . . . . . . . . . . . . . Reprogrammed . | . . . . . . . . . . . . . . . . . . . . Reused . | . . . . . . . . . . . . . . . . . . . . Traps Extracted . | . . . . . . . . . . . . . . . . . . . . Installed . | . . . . . . . . . . . . . . . . . . . . Triggered . | . . . . . . . . . . . . . . . . . . . . Machines | -11 -10 -10 -9 -7 -7 -7 -6 -6 -6 -6 -5 -5 -5 -5 -5 -5 -4 -4 -4 ---------- Run | Yrd Mat Sub Rec Fac Gar Fac Fac Low Low Dat Pro Fac Ext Cet Arc Hub Fac Was Fac Machines Disabled 56 | . . . . 8 5 1 . . . . . 1 3 . 1 18 16 . 3 Max in Single Turn 13 | . . . . 8 1 1 . . . . . 1 1 . 1 13 9 . 1 Garrison Relay 3 | . . . . . 3 . . . . . . . . . . . . . . Network Hub 1 | . . . . . . . . . . . . . . . . 1 . . . Machines Repaired . | . . . . . . . . . . . . . . . . . . . . Machines Dismantled . | . . . . . . . . . . . . . . . . . . . . Machines Sabotaged . | . . . . . . . . . . . . . . . . . . . . Overloaded Fab Kills . | . . . . . . . . . . . . . . . . . . . . Hacking | -11 -10 -10 -9 -7 -7 -7 -6 -6 -6 -6 -5 -5 -5 -5 -5 -5 -4 -4 -4 --------- Run | Yrd Mat Sub Rec Fac Gar Fac Fac Low Low Dat Pro Fac Ext Cet Arc Hub Fac Was Fac Machines Accessed 22 | . 1 . 4 1 1 3 . . . 4 1 1 3 1 1 . 1 . . Terminals 14 | . 1 . 4 . 1 2 . . . . 1 . 3 1 . . 1 . . Fabricators . | . . . . . . . . . . . . . . . . . . . . Repair Stations 1 | . . . . . . . . . . . . 1 . . . . . . . Recycling Units . | . . . . . . . . . . . . . . . . . . . . Scanalyzers 1 | . . . . . . 1 . . . . . . . . . . . . . Garrison Access 1 | . . . . 1 . . . . . . . . . . . . . . . Total Hacks 81 | . 1 . 8 2 2 3 . . . 28 1 2 6 2 25 . 1 . . Successful 72 | . 1 . 6 1 1 3 . . . 28 1 2 3 . 25 . 1 . . Failed 9 | . . . 2 1 1 . . . . . . . 3 2 . . . . . Catastrophic 2 | . . . . . . . . . . . . . . 2 . . . . . Database Lockouts . | . . . . . . . . . . . . . . . . . . . . Manual . | . . . . . . . . . . . . . . . . . . . . Terminals 23 | . 1 . 8 . 2 2 . . . . 1 . 6 2 . . 1 . . Fabricators . | . . . . . . . . . . . . . . . . . . . . Repair Stations 2 | . . . . . . . . . . . . 2 . . . . . . . Recycling Units . | . . . . . . . . . . . . . . . . . . . . Scanalyzers 1 | . . . . . . 1 . . . . . . . . . . . . . Garrison Access 2 | . . . . 2 . . . . . . . . . . . . . . . Terminal Hacks 68 | . 1 . 6 . 1 2 . . . 28 1 . 3 . 25 . 1 . . Record 42 | . . . 3 . . . . . . 11 1 . 2 . 25 . . . . Part Schematic 10 | . . . . . . . . . . 10 . . . . . . . . . Robot Schematic 4 | . . . . . . . . . . 4 . . . . . . . . . Prototype ID Bank 3 | . . . . . . . . . . 3 . . . . . . . . . Open Door 1 | . . . . . 1 . . . . . . . . . . . . . . Open DSF 1 | . . . . . . 1 . . . . . . . . . . . . . Security Status 2 | . . . . . . . . . . . . . 1 . . . 1 . . Assault Status 1 | . . . . . . 1 . . . . . . . . . . . . . Hauler Manifests 1 | . 1 . . . . . . . . . . . . . . . . . . Registered Prototypes 1 | . . . 1 . . . . . . . . . . . . . . . . Zone Layout 2 | . . . 2 . . . . . . . . . . . . . . . . Fabricator Hacks . | . . . . . . . . . . . . . . . . . . . . Repair Station Hacks 2 | . . . . . . . . . . . . 2 . . . . . . . Scan Component 1 | . . . . . . . . . . . . 1 . . . . . . . Repair 1 | . . . . . . . . . . . . 1 . . . . . . . Recycling Unit Hacks . | . . . . . . . . . . . . . . . . . . . . Scanalyzer 1 | . . . . . . 1 . . . . . . . . . . . . . Insert Component 1 | . . . . . . 1 . . . . . . . . . . . . . Garrison Access Hacks 1 | . . . . 1 . . . . . . . . . . . . . . . Unlock Access 1 | . . . . 1 . . . . . . . . . . . . . . . Unauthorized Hacks . | . . . . . . . . . . . . . . . . . . . . Terminals . | . . . . . . . . . . . . . . . . . . . . Fabricators . | . . . . . . . . . . . . . . . . . . . . Repair Stations . | . . . . . . . . . . . . . . . . . . . . Recycling Units . | . . . . . . . . . . . . . . . . . . . . Scanalyzers . | . . . . . . . . . . . . . . . . . . . . Garrison Access . | . . . . . . . . . . . . . . . . . . . . Data Cores Recovered . | . . . . . . . . . . . . . . . . . . . . Used . | . . . . . . . . . . . . . . . . . . . . Hacking Detections 6 | . . . 1 1 1 . . . . . . 1 1 1 . . . . . Full Trace Events 2 | . . . . . . . . . . . . . 1 1 . . . . . Feedback Events . | . . . . . . . . . . . . . . . . . . . . Feedback Blocked . | . . . . . . . . . . . . . . . . . . . . Robot Schematics Acquired 4 | . . . . . . . . . . 4 . . . . . . . . . Robots Built . | . . . . . . . . . . . . . . . . . . . . Authchips . | . . . . . . . . . . . . . . . . . . . . Time . | . . . . . . . . . . . . . . . . . . . . Total Robot Build Rating . | . . . . . . . . . . . . . . . . . . . . Part Schematics Acquired 10 | . . . . . . . . . . 10 . . . . . . . . . Parts Built . | . . . . . . . . . . . . . . . . . . . . Authchips . | . . . . . . . . . . . . . . . . . . . . Time . | . . . . . . . . . . . . . . . . . . . . Total Part Build Rating . | . . . . . . . . . . . . . . . . . . . . Parts Repaired 1 | . . . . . . . . . . . . 1 . . . . . . . Time 28 | . . . . . . . . . . . . 28 . . . . . . . Parts Recycled . | . . . . . . . . . . . . . . . . . . . . Recycled Matter . | . . . . . . . . . . . . . . . . . . . . Retrieved Matter . | . . . . . . . . . . . . . . . . . . . . Retrieved Components . | . . . . . . . . . . . . . . . . . . . . Parts Scanalyzed . | . . . . . . . . . . . . . . . . . . . . Part Schematics Acquired . | . . . . . . . . . . . . . . . . . . . . Parts Damaged . | . . . . . . . . . . . . . . . . . . . . Bothacking | -11 -10 -10 -9 -7 -7 -7 -6 -6 -6 -6 -5 -5 -5 -5 -5 -5 -4 -4 -4 ------------ Run | Yrd Mat Sub Rec Fac Gar Fac Fac Low Low Dat Pro Fac Ext Cet Arc Hub Fac Was Fac Used RIF Installer 1 | . . . . . 1 . . . . . . . . . . . . . . Robots Hacked 8 | . . . . . . 7 . 1 . . . . . . . . . . . Non-combat 7 | . . . . . . 6 . 1 . . . . . . . . . . . Combat 1 | . . . . . . 1 . . . . . . . . . . . . . Robot Hacks Applied 10 | . . . . . . 9 . 1 . . . . . . . . . . . find_garrison 1 | . . . . . . 1 . . . . . . . . . . . . . link_fov 3 | . . . . . . 3 . . . . . . . . . . . . . overload_power 5 | . . . . . . 4 . 1 . . . . . . . . . . . disable_weapons 1 | . . . . . . 1 . . . . . . . . . . . . . Relay Couplers Released 13 | . . . . . 13 . . . . . . . . . . . . . . Machine Destruction 13 | . . . . . 13 . . . . . . . . . . . . . . Attached 3 | . . . . . 2 1 . . . . . . . . . . . . . Fabnet Peak Effective % . | . . . . . . . . . . . . . . . . . . . . Robots Rewired . | . . . . . . . . . . . . . . . . . . . . Allies Hacked . | . . . . . . . . . . . . . . . . . . . . Hacks Repelled . | . . . . . . . . . . . . . . . . . . . . Allies | -11 -10 -10 -9 -7 -7 -7 -6 -6 -6 -6 -5 -5 -5 -5 -5 -5 -4 -4 -4 -------- Run | Yrd Mat Sub Rec Fac Gar Fac Fac Low Low Dat Pro Fac Ext Cet Arc Hub Fac Was Fac Total Allies 8 | . . . . . 1 . . . . . . . 7 . . . . . . Largest Group 6 | . . . . . 1 . . . . . . . 6 5 2 . . . . Highest-Rated Group 274 | . . . . . 25 . . . . . . . 274 254 172 . . . . Highest-Rated Ally 159 | . . . . . 25 . . . . . . . 159 159 152 . . . . Total Orders . | . . . . . . . . . . . . . . . . . . . . Ally Attacks 90 | . . . . . 2 . . . . . . . 61 27 . . . . . Total Damage 3301 | . . . . . . . . . . . . . 1909 1392 . . . . . Kills 21 | . . . . . . . . . . . . . 11 10 . . . . . Allies Corrupted . | . . . . . . . . . . . . . . . . . . . . Allies Melted . | . . . . . . . . . . . . . . . . . . . . Intel | -11 -10 -10 -9 -7 -7 -7 -6 -6 -6 -6 -5 -5 -5 -5 -5 -5 -4 -4 -4 ------- Run | Yrd Mat Sub Rec Fac Gar Fac Fac Low Low Dat Pro Fac Ext Cet Arc Hub Fac Was Fac Active Infowar (turns) 12598 | . 514 262 630 427 1282 1607 275 852 521 96 710 234 741 199 375 1147 1740 127 859 Optics 5190 | . . . . . . . . . . . . 2 741 199 375 1147 1740 127 859 Terrain 1569 | . 514 262 415 . . . . . . . . . . . . . . . 378 Machine Analysis 9481 | . . 158 630 427 1282 1607 275 852 521 96 710 234 741 142 225 1147 434 . . ECM 23 | . . . . . . 23 . . . . . . . . . . . . . Robot Analysis Total . | . . . . . . . . . . . . . . . . . . . . Derelict Logs Recovered 3 | . . . . . . . . 2 . . 1 . . . . . . . . Drone Launches . | . . . . . . . . . . . . . . . . . . . . Drone Recoveries . | . . . . . . . . . . . . . . . . . . . . Exploration | -11 -10 -10 -9 -7 -7 -7 -6 -6 -6 -6 -5 -5 -5 -5 -5 -5 -4 -4 -4 ------------- Run | Yrd Mat Sub Rec Fac Gar Fac Fac Low Low Dat Pro Fac Ext Cet Arc Hub Fac Was Fac Turns Passed 12794 | 62 514 262 630 427 1282 1607 275 852 521 96 710 234 741 199 432 1147 1817 127 859 Spaces Moved 8737 | 50 261 190 510 255 752 982 216 579 480 91 380 211 981 251 183 516 1196 145 508 Core 81 | 17 . 8 24 . . . . . . . . . . . . . 23 9 . Treads 1024 | . . . . . . . . . . . . . . . 166 516 342 . . Legs 4320 | 33 261 182 486 255 752 982 216 438 . . 184 . . . . . 45 . 486 Wheels . | . . . . . . . . . . . . . . . . . . . . Hover 427 | . . . . . . . . . . . . . . . . . 269 136 22 Flight 2885 | . . . . . . . . 141 480 91 196 211 981 251 17 . 517 . . Fastest Speed 27 | 50 120 50 50 120 130 116 120 106 106 106 106 27 27 28 108 160 37 50 60 Average Speed 109 | 96 120 117 116 144 130 126 121 124 106 106 162 56 34 42 181 161 100 68 115 Slowest Speed 755 | 120 120 120 120 270 130 360 122 365 106 106 515 202 112 108 755 163 450 180 190 Overloaded Moves . | . . . . . . . . . . . . . . . . . . . . Propulsion Burnouts . | . . . . . . . . . . . . . . . . . . . . Robots Hopped 7 | . . . . . . . . . . . . . 5 2 . . . . . Potential Cave-ins 4 | . . . . . . 4 . . . . . . . . . . . . . Cave-ins Triggered 1 | . . . . . . . . . . . . . . . . . 1 . . Exploration Rate (%) 48 | 5 57 11 85 10 59 26 7 70 66 73 58 5 97 71 93 47 29 78 19 Regions Visited 19 Branch Regions 10 Pre-discovered Areas 2 | . . . . . . . . 1 . 1 . . . . . . . . . Known Exits Taken 16 | 1 1 1 1 1 . 1 1 1 1 1 1 1 1 1 1 1 . . . Unknown Exits Taken . | . . . . . . . . . . . . . . . . . . . . Scrap Searched 8 | . . . . . . . . 3 3 . 2 . . . . . . . . Spaces Dug 148 | . . 20 . 60 . 25 1 . . . . 12 15 . . 6 7 . 2 Terrain Destroyed 758 | . 19 86 . 60 9 29 1 16 . . 1 12 46 174 7 206 88 . 4 Melee 46 | . . . . 3 . 25 1 . . . . 11 . . . . 4 . 2 Projectile 78 | . . . . . 9 4 . 2 . . 1 1 11 . 7 30 11 . 2 AOE 632 | . 19 86 . 57 . . . 14 . . . . 35 174 . 174 73 . . Terrain Rammed . | . . . . . . . . . . . . . . . . . . . . Walls Destroyed . | . . . . . . . . . . . . . . . . . . . . Machines Disabled . | . . . . . . . . . . . . . . . . . . . . Actions | -11 -10 -10 -9 -7 -7 -7 -6 -6 -6 -6 -5 -5 -5 -5 -5 -5 -4 -4 -4 --------- Run | Yrd Mat Sub Rec Fac Gar Fac Fac Low Low Dat Pro Fac Ext Cet Arc Hub Fac Was Fac Total 10736 | 64 447 211 529 303 897 1235 221 655 488 90 432 290 1262 325 229 666 1554 158 680 Wait 673 | . 158 11 . 12 13 104 . 7 3 . . 35 121 51 1 25 73 . 59 Move 8708 | 49 260 189 509 255 751 981 215 578 479 90 379 210 972 246 182 515 1196 144 508 Hop 5 | . . . . . . . . . . . . . 3 2 . . . . . Pick Up 162 | 9 5 1 5 12 10 11 1 4 1 . . 7 8 5 7 18 33 3 22 Fast Attach 50 | . . . . . 2 11 . 11 . . 8 . . . . 1 17 . . Attach 160 | 6 8 1 5 10 7 7 1 3 . . . 11 16 5 7 13 35 2 23 Detach 15 | . . . . . 2 . . . . . . 2 6 . . . 3 1 1 Swap 6 | . . . . 1 . 4 . . . . . . . . . 1 . . . Drop 78 | . 2 1 . 6 5 16 . 7 1 . 6 4 4 1 1 7 15 1 1 Fire 606 | . 14 7 . 1 65 54 3 39 4 . 39 4 76 15 31 85 105 7 57 Melee 200 | . . . 9 6 27 46 1 6 . . . 17 4 . . . 77 . 7 Ram 1 | . . . . . . . . . . . . . . . . . . . 1 Kick 4 | . . 1 1 . . 1 . . . . . . . . . . . . 1 Crush 1 | . . . . . . . . . . . . . . . . 1 . . . Escape Stasis 67 | . . . . . 15 . . . . . . . 52 . . . . . . Rewire . | . . . . . . . . . . . . . . . . . . . . Trap . | . . . . . . . . . . . . . . . . . . . . Miscellaneous . | . . . . . . . . . . . . . . . . . . . . Route ------- -11/Scrapyard -10/Materials (discovered 4 exits: *Mat x2 / *Min / *Sub) -10/Subcaves (discovered 2 exits: *Mat / *Rec) -9/Recycling -7/Factory -7/Garrison (discovered 2 exits: *Fac x2) -7/Factory -6/Factory -6/Lower Caves -6/Lower Caves (discovered 2 exits: *Fac / *Dat) -6/Data Miner -5/Proximity Caves -5/Factory (discovered 3 exits: Fac x2 / *Ext) -5/Extension (discovered 2 exits: *Fac / *Cet) -5/Cetus (discovered 2 exits: *Fac / *Arc) -5/Archives (discovered 3 exits: *Fac / *Hub x2) -5/Hub_04(d) -4/Factory -4/Waste -4/Factory History --------- Turn | Location | Event 2 | -11/Scrapyard | Met Revision 17 3 | -11/Scrapyard | Identified exit to Materials 3 | -11/Scrapyard | Discovered exit to Materials (range 15) 63 | -11/Scrapyard | Entered Materials 63 | -10/Materials | Evolved 1 slot: Utility x1 128 | -10/Materials | Identified exit to Mines 128 | -10/Materials | Discovered exit to Mines (range 16) 195 | -10/Materials | Identified exit to Materials 195 | -10/Materials | Discovered exit to Materials (range 4) 308 | -10/Materials | Build established: Hacker-Mutant 342 | -10/Materials | Discovered exit to Materials (range 16) 506 | -10/Materials | Identified exit to Subcaves 506 | -10/Materials | Discovered exit to Subcaves (range 9) 577 | -10/Materials | Entered Subcaves 578 | -10/Subcaves | Approached by a straggling Scientist 641 | -10/Subcaves | Identified exit to Materials 641 | -10/Subcaves | Discovered exit to Materials (range 7) 644 | -10/Subcaves | Ambushed by Subdweller buried in earth 814 | -10/Subcaves | Identified exit to Recycling 814 | -10/Subcaves | Discovered exit to Recycling (range 9) 839 | -10/Subcaves | Entered Recycling 840 | -9/Recycling | Met a Zionite searching for Scraptown 865 | -9/Recycling | Lost 4 parts (2n2w) 1129 | -9/Recycling | Identified exit to Factory 1129 | -9/Recycling | Discovered exit to Factory (range 16) 1258 | -9/Recycling | Core integrity fell below 50% 1469 | -9/Recycling | Entered Factory 1469 | -7/Factory | Evolved 6 slots: Power x1, Propulsion x1, Utility x3, Weapon x1 1896 | -7/Factory | Identified exit to Garrison 1896 | -7/Factory | Entered Garrison 2029 | -7/Garrison | Triggered checkpoint 2053 | -7/Garrison | Garrison Relay disabled 2368 | -7/Garrison | Triggered checkpoint 2410 | -7/Garrison | Triggered checkpoint 2424 | -7/Garrison | Triggered checkpoint 2461 | -7/Garrison | Triggered checkpoint 2507 | -7/Garrison | Identified exit to Factory 2507 | -7/Garrison | Discovered exit to Factory (range 12) 2518 | -7/Garrison | Triggered checkpoint 2648 | -7/Garrison | Garrison Relay disabled 2664 | -7/Garrison | Installed Relay Interface Framework 2879 | -7/Garrison | Rescued a captive Derelict 3072 | -7/Garrison | Discovered exit to Factory (range 12) 3086 | -7/Garrison | Triggered checkpoint 3128 | -7/Garrison | Garrison Relay disabled 3178 | -7/Garrison | Entered Factory 4753 | -7/Factory | Identified exit to Factory 4753 | -7/Factory | Discovered exit to Factory (range 6) 4785 | -7/Factory | Entered another Factory area 4785 | -6/Factory | Evolved 2 slots: Power x1, Propulsion x1 5040 | -6/Factory | Identified exit to Lower Caves 5040 | -6/Factory | Discovered exit to Lower Caves (range 9) 5060 | -6/Factory | Entered Lower Caves 5128 | -6/Lower Caves | Lost 4 parts (1p1n1u1w) 5139 | -6/Lower Caves | Learned location of 2 exits from Factory 5141 | -6/Lower Caves | Learned location of Extension (-5) 5154 | -6/Lower Caves | Encountered a Warlord checkpoint 5782 | -6/Lower Caves | Build established: Scavenger-Mutant 5870 | -6/Lower Caves | Identified exit to Lower Caves 5870 | -6/Lower Caves | Discovered exit to Lower Caves (range 16) 5912 | -6/Lower Caves | Entered another Lower Caves area 5932 | -6/Lower Caves | Identified exit to Factory 5932 | -6/Lower Caves | Discovered exit to Factory (range 5) 6388 | -6/Lower Caves | Identified exit to Data Miner 6388 | -6/Lower Caves | Discovered exit to Data Miner (range 16) 6433 | -6/Lower Caves | Entered Data Miner 6433 | -6/Data Miner | Identified exit to Proximity Caves 6433 | -6/Data Miner | Discovered exit to Proximity Caves (range 6) 6454 | -6/Data Miner | Met Data Miner 6484 | -6/Data Miner | Learned location of Section 7 (-2) 6484 | -6/Data Miner | Acquired the access code to Warlord's prototype stash 6502 | -6/Data Miner | Received God Mode back door access code from Data Miner 6529 | -6/Data Miner | Entered Proximity Caves 6552 | -5/Proximity Caves | Learned Factory garrison access intel 6939 | -5/Proximity Caves | Discovered exit to Factory (range 16) 7239 | -5/Proximity Caves | Entered Factory 7239 | -5/Factory | Evolved 2 slots: Propulsion x1, Utility x1 7240 | -5/Factory | Identified exit to Factory 7241 | -5/Factory | Loaded intel: 2 garrison access locations 7282 | -5/Factory | Repaired Variable Charge Gun 7470 | -5/Factory | Identified exit to Extension 7470 | -5/Factory | Discovered exit to Extension (range 6) 7473 | -5/Factory | Entered Extension 7497 | -5/Extension | Spotted B-75 Beast 7546 | -5/Extension | Rescued A7 7668 | -5/Extension | Rescued a captive Derelict 7672 | -5/Extension | Rescued a captive Derelict 7742 | -5/Extension | Allies destroyed B-75 Beast 7742 | -5/Extension | Spotted B-75 Beast 7764 | -5/Extension | Allies destroyed B-75 Beast 7829 | -5/Extension | Rescued a captive Derelict 7842 | -5/Extension | Rescued a captive Derelict 7844 | -5/Extension | Rescued a captive Derelict 7883 | -5/Extension | Rescued a captive Derelict 7951 | -5/Extension | Discovered exit to Factory (range 10) 7951 | -5/Extension | Identified exit to Cetus 7951 | -5/Extension | Discovered exit to Cetus (range 6) 7989 | -5/Extension | Build established: Hacker-Sprinter 8144 | -5/Extension | Disrupted transfer network 8214 | -5/Extension | Entered Cetus 8214 | -5/Cetus | Accompanied by 5 allies (A7) 8219 | -5/Cetus | Acquired a Cetus Manufacturing Module code from A7 8228 | -5/Cetus | Spotted Cetus Guard 8229 | -5/Cetus | Spotted Cetus Guard 8233 | -5/Cetus | Spotted Cetus Guard 8233 | -5/Cetus | Spotted Cetus Guard 8241 | -5/Cetus | Allies destroyed Cetus Guard 8244 | -5/Cetus | Allies destroyed Cetus Guard 8244 | -5/Cetus | Destroyed Cetus Guard 8259 | -5/Cetus | Allies destroyed Cetus Guard 8301 | -5/Cetus | Identified exit to Archives 8301 | -5/Cetus | Discovered exit to Archives (range 18) 8307 | -5/Cetus | Spotted Cetus Guard 8307 | -5/Cetus | Spotted Cetus Guard 8307 | -5/Cetus | Spotted Cetus Guard 8308 | -5/Cetus | Spotted Cetus Guard 8326 | -5/Cetus | Allies destroyed Cetus Guard 8335 | -5/Cetus | Allies destroyed Cetus Guard 8350 | -5/Cetus | Discovered exit to Factory (range 18) 8355 | -5/Cetus | Allies destroyed Cetus Guard 8355 | -5/Cetus | Allies destroyed Cetus Guard 8357 | -5/Cetus | System corruption reached 10% 8413 | -5/Cetus | Entered Archives 8413 | -5/Archives | Accompanied by 2 allies (A7) 8472 | -5/Archives | Lost 3 parts (3n) 8560 | -5/Archives | Core integrity fell below 50% 8653 | -5/Archives | Identified exit to Hub_04(d) 8653 | -5/Archives | Discovered exit to Hub_04(d) (range 18) 8680 | -5/Archives | Unable to access archive contents 8702 | -5/Archives | Unable to access archive contents 8709 | -5/Archives | Discovered exit to Hub_04(d) (range 17) 8718 | -5/Archives | Unable to access archive contents 8741 | -5/Archives | Discovered exit to Factory (range 15) 8749 | -5/Archives | Unable to access archive contents 8784 | -5/Archives | Build established: Scavenger-Gunner 8845 | -5/Archives | Entered Hub_04(d) 9316 | -5/Hub_04(d) | Destroyed 7 combat bots 9495 | -5/Hub_04(d) | Disrupted transfer network 9574 | -5/Hub_04(d) | Discovered exit to Factory (range 14) 9901 | -5/Hub_04(d) | Network Hub disabled 9916 | -5/Hub_04(d) | Spotted Lightning 9959 | -5/Hub_04(d) | Spotted Lightning 9986 | -5/Hub_04(d) | Spotted Lightning 9992 | -5/Hub_04(d) | Entered Factory 9992 | -4/Factory | Evolved 2 slots: Utility x1, Weapon x1 10426 | -4/Factory | Crushed by falling debris 10457 | -4/Factory | Lost 5 parts (4u1w) 10684 | -4/Factory | Found Unknown Device 10684 | -4/Factory | Identified Quantum Capacitor 11172 | -4/Factory | Core integrity fell below 50% 11173 | -4/Factory | Destroyed 7 combat bots 11187 | -4/Factory | Lost 7 parts (1p3n1u2w) 11356 | -4/Factory | Lost 6 parts (3n1u2w) 11425 | -4/Factory | Lost 4 parts (1p2n1w) 11809 | -4/Factory | Sucked down chute 11809 | -4/Factory | Entered Waste 11824 | -4/Waste | EMP discharged 11831 | -4/Waste | Spotted C-40 Crusher 11857 | -4/Waste | Spotted C-40 Crusher 11876 | -4/Waste | Crushed by Compactor (1 part destroyed, 2 dropped) 11898 | -4/Waste | Spotted C-40 Crusher 11900 | -4/Waste | Spotted C-40 Crusher 11913 | -4/Waste | Spotted C-40 Crusher 11923 | -4/Waste | Spotted C-40 Crusher 11924 | -4/Waste | EMP discharged 11924 | -4/Waste | System corruption reached 10% 11928 | -4/Waste | Crushed by Compactor (1 part destroyed, 2 dropped) 11928 | -4/Waste | Identified exit to Factory 11928 | -4/Waste | Discovered exit to Factory (range 12) 11936 | -4/Waste | Entered Factory 12237 | -4/Factory | Core integrity fell below 20% 12363 | -4/Factory | Lost 4 parts (1p2n1w) 12753 | -4/Factory | Garrison activated, responded to threat 12792 | -4/Factory | Lost 6 parts (1p2n1u2w) 12795 | -4/Factory | Destroyed by P-80 Master with Gamma Rifle Last Messages --------------- Slug penetrates A-15 Conveyor. Terminal disabled. W-44 Eye distress signal alerts nearby ally. Wave Gun destroyed. Slug penetrates Wall. Slug penetrates A-15 Conveyor. A-15 Conveyor suffers critical hit (Destroy). A-15 Conveyor destroyed. K-01 Serf collects debris. Acquired 41 matter. U-05 Engineer lays Concrete. Slug penetrates Wall. K-01 Serf collects debris. Subcomponent Replicator disabled. Penetrated by Slug. Critical hit (Burn: +37). K-01 Serf collects debris. Kicked K-01 Serf. System corrupted: Heat flow error (+208). [Achievement: 20k Club] Map ----- +----------------------------------------------------+ | ###??? ??????????????????????????????????????????? | | #????????????????????????????????????????????????? | | #??###???????????????????????????????????????????? | | #####????#???????????????????????????????????????? | | ####?#???#?????"??"??????????????????????????????? | | #?#?????????? ??????? ???????????????????????????? | | ###?????#?#??????????????????????????????????????? | | #?#?#?????????##+#?#?#???#???????????????????????? | | ?##?###???#???? ???????????????????????????????? | | #########???#?? ?#???? ????????????????????????? | | #### #####????? " ???????????????????????????????? | | #???#? ?????????"?????????????????????? | | #?##?? ???????????????????????????????? | | #?????# ##???#? ? ??????????????????????? | | != #????## #?? #??????????????????????????? | | ![[!!/ ####### # #? ????????????????????????? | | [%[!!* / % + #????"???"?????????????????? | | " ! /* ####### # #????? ????????????????????? | | "" #??#### #?? #??????????????????????????? | | "" #???#?# #?? ?#?? ???? ??????????????????? | | "" ##????# #??????????#????#???????????????? | | "" #??#??# #?????##????##??#???????????????? | | !#????## # ???#????#????????????????????? | | ##########??##?# #############???????????????????? | | ?? ??? ? ??? ??# p #???????????????????? | | ? ?? ??? ??????# p @ +???????????????????? | | ?? ??? ???? ???# #???????????????????? | | ??????? #??? ?# #???????????????????? | | ?????????????? # k ????????????????? | | ?????????# ????+ ?????????????? | | ???????????????# ???????????? | | ???????????????##################### ??????????? | | ?????????????????????????????????#???? ?????????? | | ???????????????????????? ????????????????????????? | | ?????????#???? ?????????????"????????????????????? | | ?????????????? ????##????????????????????????????? | | ?????????????????##??????????????????????????????? | | ????????????????#????????????????????????????????? | | ?????????????????????????????????????????????????? | | ?????????????????????????????????????????????????? | | ?????????????????????????????????????????????????? | | ?????????????????????????????????????????????????? | | ?????????????????????????????????????????????????? | | ?????????????????????????????????????????????????? | | ?????????????????????????????????????????????????? | | ?????????????????????????????????????????????????? | | ?????????????????????????????????????????????????? | | ?????????????????????????????????????????????????? | | ?????????????????????????????????????????????????? | | ?????????????????????????????????????????????????? | +----------------------------------------------------+ Best States ------------- Heat Dissipation 74 Energy Generation 45 Energy Capacity 455 Matter Stores 300 Matter Capacity 300 Sight Range 22 Terrain Scan Range 14 Terrain Scan Density 85 ECM Strength 2 EM Shielding 3 Armor Coverage 225 Resistance: KI 35 Resistance: TH 35 Resistance: EX 35 Resistance: EM 35 Resistance: I 35 Resistance: S 35 Resistance: P 35 Utility Shielding 33 Phase Shifting 10 Evasion (%) 82 Targeting Accuracy 16 Melee Accuracy 8 Target Analysis 8 Recoil Reduction 5 Offensive Hacking 20 Relay Coupler Types 3 Relay Coupler Value 112 Item Schematics ----------------- Combat Drone Bay | -6/Data Miner | Free Lgt. Regenerative Plating | -6/Data Miner | Free Enh. Armored Leg | -6/Data Miner | Free Ionic Axe | -6/Data Miner | Free Imp. Matter Compressor | -6/Data Miner | Free Imp. Gyrokinetic Inverter | -6/Data Miner | Free Adv. Transmission Jammer | -6/Data Miner | Free Imp. Thermal Shield | -6/Data Miner | Free Adv. Concussive RPG | -6/Data Miner | Free Field Propulsion Array | -6/Data Miner | Free Robot Schematics ------------------ G-50 Soldier | -6/Data Miner | Free H-66 Slayer | -6/Data Miner | Free Y-64 Sentinel | -6/Data Miner | Free B-60 Warrior | -6/Data Miner | Free Fabricated ------------ Nothing Repaired ---------- Variable Charge Gun | 13% | -5/Factory Alien Tech Used ----------------- None Achievements -------------- 20k Club Cya! Deadly Force Dodgeball, But With Guns Error 47 Explorer I'm Back, Baby! It Was An Accident, I Swear The Oracle Challenges ------------ None Game ------ Seed BraceDeepTrident Manual? 0 Play Time 03:37:49 Cumulative 22.7 hours Start 2025.07.14 @ 18:28:40 End 2025.07.15 @ 12:44:21 Sessions 3 Manual Loads 0 Difficulty Explorer Special Mode None Game No. 22 Rogue 0 Adventurer 0 Explorer 22 Win Type - Total 0 Types 0/0/0/0/0/0/0/0/0/0 Lore% 13 Gallery% 23 Achievement% 21 Wizard Run 0 Options --------- Layout 1 ASCII 0 Keyboard 0 Movement Mouse Keybinds 0 Fullscreen 2 Font 16/SmallcapsGlow Map View 50x35 Zoom Use 0% Tactical HUD 0 Map Filters NONE Filters NONE Steam X RUN: 9a5f1dfd-ab51-42b1-8d4c-9e186ddadc61